[Event "48th Indian U15-ch Open 2023"]
[Site "Jalgaon"]
[Date "2023.12.31"]
[Round "6.8"]
[White "Pavan Karthikeya Varma Gunturi"]
[Black "Mukund Hemant Agarwal"]
[Result "1-0"]
[ECO "B23"]
[WhiteElo "1538"]
[BlackElo "1852"]
[Annotator "NA COMBH"]
[PlyCount "115"]
[EventDate "2023.12.30"]
[EventType "swiss"]
[EventCountry "IND"]
[SourceTitle "playchess.com"]
[Source "ChessBase"]
[SourceQuality "1"]
[TimeControl "5400+30"]

1. e4 {[%emt 0:00:09]} c5 {[%emt 0:00:07]} 2. Nc3 {[%emt 0:00:10]} Nc6 {[%emt 0:00:23]} 3. Bb5 {[%emt 0:00:16]} Nd4 {[%emt 0:00:40]} 4. Nf3 {[%emt 0:00:43]} a6 {[%emt 0:00:42]} 5. Bd3 {[%emt 0:01:02]} g6 {[%emt 0:00:14]} 6. Rb1 {[%emt 0:02:24]} Bg7 {[%emt 0:02:32]} 7. b4 {[%emt 0:04:00]} cxb4 {[%emt 0:11:42]} 8. Rxb4 {[%emt 0:00:21]} Nc6 {[%emt 0:01:41]} 9. Rb1 {[%emt 0:00:52]} d6 {[%emt 0:07:36]} 10. h3 {[%emt 0:02:21]} Nf6 {[%emt 0:16:25]} 11. O-O {[%emt 0:02:19]} d5 {[%emt 0:09:07]} 12. a4 {[%emt 0:17:54]} d4 {[%emt 0:10:33]} 13. Ne2 {[%emt 0:03:30]} Nd7 {[%emt 0:01:25]} 14. Ba3 {[%emt 0:13:17]} Nde5 {[%emt 0:02:13]} 15. Nf4 {[%emt 0:03:31]} Nxd3 {[%emt 0:02:17]} 16. Nxd3 {[%emt 0:00:20]} O-O {[%emt 0:02:09]} 17. Bc5 {[%emt 0:02:30]} Re8 {[%emt 0:10:31]} 18. Bb6 {[%emt 0:06:32]} Qd6 {[%emt 0:00:52]} 19. Bc5 {[%emt 0:02:03]} Qb8 {[%emt 0:02:46]} 20. Qc1 {[%emt 0:11:47]} e5 {[%emt 0:02:44]} 21. Qa3 {[%emt 0:01:48]} Bf8 {[%emt 0:09:21]} 22. Bxf8 {[%emt 0:03:17]} Rxf8 {[%emt 0:00:02]} 23. Qc5 {[%emt 0:01:26]} f6 {[%emt 0:00:19]} 24. Rb6 {[%emt 0:02:45]} Bd7 {[%emt 0:02:49]} 25. Qd5+ {[%emt 0:00:59]} Rf7 {[%emt 0:00:20]} 26. Nc5 {[%emt 0:00:44]} Bc8 {[%emt 0:02:08]} 27. Rfb1 {[%emt 0:01:18]} Qc7 {[%emt 0:00:34]} 28. Rxb7 {[%emt 0:05:00]} Bxb7 {[%emt 0:00:47]} 29. Rxb7 {[%emt 0:00:08]} Rd8 {[%emt 0:00:51]} 30. Qe6 {[%emt 0:00:24]} Rd6 {[%emt 0:01:01]} 31. Rxc7 {[%emt 0:00:15]} Rxe6 {[%emt 0:00:26]} 32. Nxe6 {[%emt 0:00:06]} Rxc7 {[%emt 0:00:27]} 33. Nxc7 {[%emt 0:00:04]} Nb4 {[%emt 0:00:14]} 34. c3 {[%emt 0:00:28]} dxc3 {[%emt 0:00:17]} 35. dxc3 {[%emt 0:00:22]} Na2 {[%emt 0:00:05]} 36. Nxa6 {[%emt 0:00:17]} Nxc3 {[%emt 0:00:02]} 37. Nc5 {[%emt 0:00:14]} Kf7 {[%emt 0:00:11]} 38. Nd2 {[%emt 0:01:09]} Ke7 {[%emt 0:00:02]} 39. Nc4 {[%emt 0:00:21]} f5 {[%emt 0:00:36]} 40. f3 {[%emt 0:00:22]} fxe4 {[%emt 0:00:05]} 41. fxe4 {[%emt 0:00:04]} g5 {[%emt 0:00:42]} 42. a5 {[%emt 0:00:31]} h5 {[%emt 0:00:13]} 43. a6 {[%emt 0:00:27]} Nb5 {[%emt 0:00:01]} 44. Nd3 {[%emt 0:00:20]} g4 {[%emt 0:00:16]} 45. Ndxe5 {[%emt 0:00:23]} gxh3 {[%emt 0:00:06]} 46. gxh3 {[%emt 0:00:05]} Ke6 {[%emt 0:00:22]} 47. Nc6 {[%emt 0:00:24]} Kf6 {[%emt 0:00:30]} 48. a7 {[%emt 0:00:09]} Nc7 {[%emt 0:00:06]} 49. Nb6 {[%emt 0:00:09]} Ke6 {[%emt 0:00:24]} 50. a8=Q {[%emt 0:00:15]} Nxa8 {[%emt 0:00:11]} 51. Nxa8 {[%emt 0:00:03]} Kd6 {[%emt 0:00:05]} 52. Nb4 {[%emt 0:00:11]} Ke5 {[%emt 0:00:03]} 53. Kg2 {[%emt 0:00:10]} Kxe4 {[%emt 0:00:04]} 54. Kg3 {[%emt 0:00:03]} Kf5 {[%emt 0:00:16]} 55. Kh4 {[%emt 0:00:04]} Kg6 {[%emt 0:00:05]} 56. Nd5 {[%emt 0:00:04]} Kh6 {[%emt 0:00:25]} 57. Nf4 {[%emt 0:00:03]} Kh7 {[%emt 0:00:07]} 58. Kxh5 {[%emt 0:00:04]} 1-0

[Event "48th Indian U15-ch Open 2023"]
[Site "Jalgaon"]
[Date "2023.12.31"]
[Round "6.9"]
[White "Bivor Adak"]
[Black "Vivaan Vijay Saraogi"]
[Result "1-0"]
[ECO "B80"]
[WhiteElo "1791"]
[BlackElo "1982"]
[Annotator "COMBH"]
[PlyCount "107"]
[EventDate "2023.12.30"]
[EventType "swiss"]
[EventCountry "IND"]
[SourceTitle "playchess.com"]
[Source "ChessBase"]
[SourceQuality "1"]
[TimeControl "5400+30"]

1. e4 {[%emt 0:00:27]} c5 {[%emt 0:00:43]} 2. Nf3 {[%emt 0:01:25]} d6 {[%emt 0:00:12]} 3. d4 {[%emt 0:00:39]} cxd4 {[%emt 0:00:06]} 4. Nxd4 {[%emt 0:00:15]} Nf6 {[%emt 0:00:09]} 5. Nc3 {[%emt 0:01:04]} a6 {[%emt 0:00:07]} 6. Be3 {[%emt 0:03:08]} e6 {[%emt 0:01:34]} 7. a3 {[%emt 0:01:30]} Be7 {[%emt 0:01:38]} 8. Qe2 {[%emt 0:01:24]} Qc7 {[%emt 0:13:50]} 9. g4 {[%emt 0:03:04]} h6 {[%emt 0:31:52]} 10. Bg2 {[%emt 0:04:50]} Nc6 {[%emt 0:04:48]} 11. h3 {[%emt 0:10:14]} Bd7 {[%emt 0:12:41]} 12. f4 {[%emt 0:06:12]} g6 {[%emt 0:21:03]} 13. Nb3 {[%emt 0:04:24]} g5 {[%emt 0:03:41]} 14. fxg5 {[%emt 0:07:38]} hxg5 {[%emt 0:00:03]} 15. Bxg5 {[%emt 0:01:43]} Ng8 {[%emt 0:01:32]} 16. Bxe7 {[%emt 0:03:31]} Ngxe7 {[%emt 0:00:02]} 17. O-O-O {[%emt 0:00:23]} Ne5 {[%emt 0:02:47]} 18. Qd2 {[%emt 0:05:10]} Nc4 {[%emt 0:00:14]} 19. Qd4 {[%emt 0:00:07]} O-O-O {[%emt 0:02:19]} 20. Bf1 {[%emt 0:11:24]} b5 {[%emt 0:00:37]} 21. Bxc4 {[%emt 0:00:38]} bxc4 {[%emt 0:00:08]} 22. Nd2 {[%emt 0:00:06]} Bb5 {[%emt 0:00:48]} 23. a4 {[%emt 0:02:48]} e5 {[%emt 0:00:33]} 24. Qf2 {[%emt 0:00:06]} Be8 {[%emt 0:00:31]} 25. Qe2 {[%emt 0:00:08]} Kb7 {[%emt 0:00:30]} 26. Qxc4 {[%emt 0:00:33]} Qb6 {[%emt 0:00:31]} 27. Qb3 {[%emt 0:00:33]} Bc6 {[%emt 0:00:30]} 28. Qxb6+ {[%emt 0:01:37]} Kxb6 {[%emt 0:00:01]} 29. Nc4+ {[%emt 0:01:29]} Kc5 {[%emt 0:00:01]} 30. Ne3 {[%emt 0:00:38]} Ng6 {[%emt 0:01:27]} 31. Ned5 {[%emt 0:00:16]} Rh7 {[%emt 0:00:31]} 32. Rd3 {[%emt 0:05:26]} a5 {[%emt 0:00:30]} 33. b3 {[%emt 0:01:13]} Bxd5 {[%emt 0:00:30]} 34. Nxd5 {[%emt 0:01:07]} Kc6 {[%emt 0:00:25]} 35. Rc3+ {[%emt 0:00:05]} Kb7 {[%emt 0:00:05]} 36. Rc7+ {[%emt 0:00:07]} Kb8 {[%emt 0:00:24]} 37. Rc6 {[%emt 0:01:07]} Kb7 {[%emt 0:00:47]} 38. Rb6+ {[%emt 0:00:49]} Ka7 {[%emt 0:00:01]} 39. Rb5 {[%emt 0:00:23]} Ka6 {[%emt 0:00:18]} 40. b4 {[%emt 0:02:05]} Rdh8 {[%emt 0:00:47]} 41. bxa5 {[%emt 0:02:49]} f6 {[%emt 0:00:56]} 42. Rf1 {[%emt 0:00:12]} Rf8 {[%emt 0:00:37]} 43. Rf3 {[%emt 0:01:44]} Rb7 {[%emt 0:00:37]} 44. Nb4+ {[%emt 0:00:32]} Ka7 {[%emt 0:00:02]} 45. Nc6+ {[%emt 0:00:08]} Ka8 {[%emt 0:00:12]} 46. Rfb3 {[%emt 0:01:17]} Rxb5 {[%emt 0:00:11]} 47. axb5 {[%emt 0:00:07]} Kb7 {[%emt 0:00:19]} 48. Rd3 {[%emt 0:04:37]} Kc7 {[%emt 0:00:32]} 49. Nb4 {[%emt 0:01:03]} Kd7 {[%emt 0:01:44]} 50. Nd5 {[%emt 0:00:29]} Rb8 {[%emt 0:00:32]} 51. b6 {[%emt 0:00:49]} Kc6 {[%emt 0:00:30]} 52. a6 {[%emt 0:01:03]} Ra8 {[%emt 0:00:30]} 53. Rc3+ {[%emt 0:00:28]} Kd7 {[%emt 0:00:19]} 54. b7 {[%emt 0:00:06]} 1-0

[Event "48th Indian U15-ch Open 2023"]
[Site "Jalgaon"]
[Date "2023.12.31"]
[Round "6.10"]
[White "Mrithyunjay Mahadevan"]
[Black "Challa Saharsha"]
[Result "1-0"]
[ECO "B30"]
[WhiteElo "1944"]
[BlackElo "1674"]
[Annotator "COMBH"]
[PlyCount "95"]
[EventDate "2023.12.30"]
[EventType "swiss"]
[EventCountry "IND"]
[SourceTitle "playchess.com"]
[Source "ChessBase"]
[SourceQuality "1"]
[TimeControl "5400+30"]

1. e4 {[%emt 0:00:09]} c5 {[%emt 0:00:04]} 2. Nf3 {[%emt 0:00:08]} Nc6 {[%emt 0:00:08]} 3. Bb5 {[%emt 0:00:04]} e5 {[%emt 0:00:36]} 4. O-O {[%emt 0:00:28]} Bd6 {[%emt 0:01:40]} 5. Re1 {[%emt 0:01:01]} a6 {[%emt 0:05:40]} 6. Bf1 {[%emt 0:00:06]} Nf6 {[%emt 0:00:50]} 7. c3 {[%emt 0:00:33]} Be7 {[%emt 0:06:19]} 8. d4 {[%emt 0:02:56]} d6 {[%emt 0:02:07]} 9. d5 {[%emt 0:01:06]} Nb8 {[%emt 0:00:36]} 10. h3 {[%emt 0:00:16]} Nbd7 {[%emt 0:02:11]} 11. a4 {[%emt 0:00:33]} b6 {[%emt 0:00:53]} 12. Nbd2 {[%emt 0:07:29]} Nf8 {[%emt 0:06:16]} 13. b4 {[%emt 0:01:37]} Ng6 {[%emt 0:08:05]} 14. bxc5 {[%emt 0:02:31]} bxc5 {[%emt 0:00:10]} 15. Rb1 {[%emt 0:00:13]} O-O {[%emt 0:02:04]} 16. Nc4 {[%emt 0:01:46]} Bd7 {[%emt 0:05:24]} 17. Nb6 {[%emt 0:04:23]} Rb8 {[%emt 0:01:37]} 18. a5 {[%emt 0:00:27]} Bc8 {[%emt 0:03:13]} 19. Nd2 {[%emt 0:05:19]} Qc7 {[%emt 0:10:25]} 20. Ndc4 {[%emt 0:03:18]} Ne8 {[%emt 0:01:33]} 21. Qc2 {[%emt 0:00:29]} Bb7 {[%emt 0:03:29]} 22. g3 {[%emt 0:02:37]} Nf6 {[%emt 0:08:48]} 23. h4 {[%emt 0:01:58]} Rfd8 {[%emt 0:02:36]} 24. Bh3 {[%emt 0:00:23]} Nf8 {[%emt 0:06:39]} 25. Bg5 {[%emt 0:00:11]} h6 {[%emt 0:00:32]} 26. Bxf6 {[%emt 0:00:07]} Bxf6 {[%emt 0:00:08]} 27. Rb3 {[%emt 0:00:32]} Qe7 {[%emt 0:03:44]} 28. Reb1 {[%emt 0:00:39]} Bxh4 {[%emt 0:06:19]} 29. gxh4 {[%emt 0:00:08]} Qxh4 {[%emt 0:00:04]} 30. Bg2 {[%emt 0:01:56]} Ng6 {[%emt 0:01:01]} 31. Ne3 {[%emt 0:00:42]} Bc8 {[%emt 0:00:34]} 32. Nxc8 {[%emt 0:00:29]} Rbxc8 {[%emt 0:00:11]} 33. Qe2 {[%emt 0:00:46]} Nf4 {[%emt 0:00:03]} 34. Qg4 {[%emt 0:00:09]} Qf6 {[%emt 0:00:53]} 35. Rb7 {[%emt 0:00:07]} g6 {[%emt 0:01:04]} 36. Bf1 {[%emt 0:03:58]} h5 {[%emt 0:04:10]} 37. Qg3 {[%emt 0:00:18]} Kh8 {[%emt 0:00:59]} 38. Ra7 {[%emt 0:01:48]} Rb8 {[%emt 0:01:13]} 39. Rb6 {[%emt 0:00:45]} Rxb6 {[%emt 0:01:05]} 40. axb6 {[%emt 0:00:02]} Rb8 {[%emt 0:00:01]} 41. b7 {[%emt 0:00:13]} Kh7 {[%emt 0:00:28]} 42. Bxa6 {[%emt 0:00:11]} Qd8 {[%emt 0:01:15]} 43. Qf3 {[%emt 0:01:35]} f5 {[%emt 0:01:12]} 44. exf5 {[%emt 0:01:03]} gxf5 {[%emt 0:00:03]} 45. Ng2 {[%emt 0:00:40]} Qg8 {[%emt 0:01:37]} 46. Kf1 {[%emt 0:00:27]} Qf7 {[%emt 0:01:24]} 47. Nxf4 {[%emt 0:00:34]} exf4 {[%emt 0:00:07]} 48. Ra8 {[%emt 0:00:11]} 1-0

[Event "48th Indian U15-ch Open 2023"]
[Site "Jalgaon"]
[Date "2023.12.31"]
[Round "7.1"]
[White "Md Imran"]
[Black "Bhoir Paras Dilip"]
[Result "1/2-1/2"]
[ECO "D31"]
[WhiteElo "2174"]
[BlackElo "1808"]
[Annotator "RC"]
[PlyCount "107"]
[EventDate "2023.12.30"]
[EventType "swiss"]
[EventCountry "IND"]
[SourceTitle "playchess.com"]
[Source "ChessBase"]
[SourceQuality "1"]
[TimeControl "5400+30"]

1. d4 {[%emt 0:00:14]} d5 {[%emt 0:00:11]} 2. c4 {[%emt 0:00:42]} e6 {[%emt 0:00:07]} 3. Nc3 {[%emt 0:00:11]} c6 {[%emt 0:00:06]} 4. cxd5 {[%emt 0:00:06]} exd5 {[%emt 0:00:07]} 5. Bf4 {[%emt 0:00:04]} Bd6 {[%emt 0:04:08]} 6. Bxd6 {[%emt 0:01:00]} Qxd6 {[%emt 0:00:05]} 7. e3 {[%emt 0:00:06]} Bf5 {[%emt 0:00:26]} 8. g4 {[%emt 0:00:26]} Bg6 {[%emt 0:01:02]} 9. Nge2 {[%emt 0:00:20]} h5 {[%emt 0:14:12]} 10. g5 {[%emt 0:00:01]} h4 {[%emt 0:03:51]} 11. Nf4 {[%emt 0:00:13]} Bf5 {[%emt 0:01:06]} 12. Bd3 {[%emt 0:01:42]} Bxd3 {[%emt 0:02:14]} 13. Qxd3 {[%emt 0:03:09]} g6 {[%emt 0:05:45]} 14. f3 {[%emt 0:01:04]} Ne7 {[%emt 0:01:26]} 15. Kf2 {[%emt 0:00:30]} Nd7 {[%emt 0:00:38]} 16. Rac1 {[%emt 0:01:42]} Nf5 {[%emt 0:04:11]} 17. Rhe1 {[%emt 0:05:26]} O-O {[%emt 0:02:57]} 18. Nce2 {[%emt 0:13:39]} Rad8 {[%emt 0:08:12]} 19. e4 {[%emt 0:02:49]} dxe4 {[%emt 0:00:28]} 20. fxe4 {[%emt 0:00:02]} Ng7 {[%emt 0:00:30]} 21. Qa3 {[%emt 0:08:56]} Qb8 {[%emt 0:05:23]} 22. Kg2 {[%emt 0:07:07]} c5 {[%emt 0:08:18]} 23. Qb3 {[%emt 0:08:44]} Rfe8 {[%emt 0:09:36]} 24. Nxg6 {[%emt 0:01:44]} Rxe4 {[%emt 0:01:09]} 25. Qf3 {[%emt 0:00:30]} Ree8 {[%emt 0:04:39]} 26. Nxh4 {[%emt 0:00:28]} cxd4 {[%emt 0:00:34]} 27. Nxd4 {[%emt 0:04:44]} Ne5 {[%emt 0:02:42]} 28. Qc3 {[%emt 0:00:18]} Qd6 {[%emt 0:02:31]} 29. Rcd1 {[%emt 0:11:02]} Ng4 {[%emt 0:07:53]} 30. Nhf3 {[%emt 0:02:39]} Rxe1 {[%emt 0:02:39]} 31. Rxe1 {[%emt 0:00:54]} Nxh2 {[%emt 0:00:20]} 32. Nb5 {[%emt 0:02:27]} Qd5 {[%emt 0:00:57]} 33. Re5 {[%emt 0:03:46]} Qxf3+ {[%emt 0:01:09]} 34. Qxf3 {[%emt 0:00:12]} Nxf3 {[%emt 0:00:14]} 35. Kxf3 {[%emt 0:00:03]} Rd2 {[%emt 0:01:17]} 36. Re2 {[%emt 0:00:10]} Rd5 {[%emt 0:02:06]} 37. Nxa7 {[%emt 0:00:33]} Ne6 {[%emt 0:00:19]} 38. Re3 {[%emt 0:04:13]} Nxg5+ {[%emt 0:02:38]} 39. Ke2 {[%emt 0:00:02]} Ne6 {[%emt 0:00:12]} 40. Nc8 {[%emt 0:01:21]} Kf8 {[%emt 0:00:48]} 41. Nb6 {[%emt 0:00:06]} Rb5 {[%emt 0:00:34]} 42. Nc4 {[%emt 0:00:02]} Ke7 {[%emt 0:00:21]} 43. b3 {[%emt 0:00:34]} Rh5 {[%emt 0:00:29]} 44. Kd3 {[%emt 0:00:21]} f5 {[%emt 0:00:44]} 45. Ne5 {[%emt 0:00:13]} Rg5 {[%emt 0:01:23]} 46. Re1 {[%emt 0:00:47]} Kf6 {[%emt 0:00:30]} 47. Nd7+ {[%emt 0:00:05]} Kf7 {[%emt 0:00:13]} 48. Ne5+ {[%emt 0:00:03]} Ke7 {[%emt 0:00:57]} 49. a4 {[%emt 0:00:20]} Rg3+ {[%emt 0:00:19]} 50. Kc4 {[%emt 0:00:12]} f4 {[%emt 0:01:14]} 51. b4 {[%emt 0:00:36]} Kf6 {[%emt 0:00:59]} 52. Nd7+ {[%emt 0:00:15]} Kf7 {[%emt 0:00:07]} 53. Nc5 {[%emt 0:00:34]} Nxc5 {[%emt 0:00:46]} 54. Kxc5 {[%emt 0:00:06]} 1/2-1/2

[Event "48th Indian U15-ch Open 2023"]
[Site "Jalgaon"]
[Date "2023.12.31"]
[Round "7.2"]
[White "Jihan Tejas Shah"]
[Black "Mayank Chakraborty"]
[Result "1/2-1/2"]
[ECO "E35"]
[WhiteElo "1891"]
[BlackElo "2403"]
[Annotator "RC"]
[PlyCount "89"]
[EventDate "2023.12.30"]
[EventType "swiss"]
[EventCountry "IND"]
[SourceTitle "playchess.com"]
[Source "ChessBase"]
[SourceQuality "1"]
[TimeControl "5400+30"]

1. d4 {[%emt 0:00:53]} Nf6 {[%emt 0:00:05]} 2. c4 {[%emt 0:00:04]} e6 {[%emt 0:00:05]} 3. Nc3 {[%emt 0:00:27]} Bb4 {[%emt 0:00:02]} 4. Qc2 {[%emt 0:00:08]} d5 {[%emt 0:00:01]} 5. cxd5 {[%emt 0:00:10]} exd5 {[%emt 0:00:07]} 6. Bg5 {[%emt 0:00:51]} O-O {[%emt 0:01:22]} 7. e3 {[%emt 0:00:51]} c5 {[%emt 0:00:50]} 8. dxc5 {[%emt 0:01:11]} Be6 {[%emt 0:00:07]} 9. Bd3 {[%emt 0:01:11]} h6 {[%emt 0:00:19]} 10. Bh4 {[%emt 0:00:04]} Nbd7 {[%emt 0:00:29]} 11. Nge2 {[%emt 0:01:50]} Rc8 {[%emt 0:01:47]} 12. O-O {[%emt 0:01:06]} Nxc5 {[%emt 0:07:43]} 13. Rfd1 {[%emt 0:01:23]} Qe7 {[%emt 0:07:37]} 14. Rac1 {[%emt 0:04:01]} Rfd8 {[%emt 0:04:04]} 15. Bf5 {[%emt 0:02:58]} g5 {[%emt 0:04:40]} 16. Bg3 {[%emt 0:01:34]} Nce4 {[%emt 0:06:58]} 17. Bxe6 {[%emt 0:01:53]} fxe6 {[%emt 0:00:57]} 18. Qd3 {[%emt 0:04:24]} Qf7 {[%emt 0:19:37]} 19. Nxe4 {[%emt 0:04:36]} Nxe4 {[%emt 0:00:27]} 20. Rxc8 {[%emt 0:00:44]} Rxc8 {[%emt 0:00:05]} 21. Rc1 {[%emt 0:00:50]} Rxc1+ {[%emt 0:02:58]} 22. Nxc1 {[%emt 0:00:07]} Qf5 {[%emt 0:07:12]} 23. f3 {[%emt 0:06:21]} Nxg3 {[%emt 0:00:34]} 24. hxg3 {[%emt 0:00:07]} Bc5 {[%emt 0:05:50]} 25. Kf2 {[%emt 0:00:55]} Qe5 {[%emt 0:04:35]} 26. b3 {[%emt 0:00:57]} Kg7 {[%emt 0:05:14]} 27. Ne2 {[%emt 0:01:48]} h5 {[%emt 0:05:06]} 28. f4 {[%emt 0:02:51]} Qf6 {[%emt 0:02:04]} 29. Qb5 {[%emt 0:04:25]} Bb6 {[%emt 0:01:15]} 30. a4 {[%emt 0:01:53]} h4 {[%emt 0:01:44]} 31. a5 {[%emt 0:01:50]} hxg3+ {[%emt 0:00:08]} 32. Kf3 {[%emt 0:00:19]} Qf7 {[%emt 0:01:40]} 33. Nxg3 {[%emt 0:02:57]} Bxe3 {[%emt 0:00:07]} 34. f5 {[%emt 0:00:11]} exf5 {[%emt 0:01:09]} 35. Qd3 {[%emt 0:00:18]} f4 {[%emt 0:02:38]} 36. Nf5+ {[%emt 0:00:35]} Kf8 {[%emt 0:01:36]} 37. Kg4 {[%emt 0:00:50]} Qd7 {[%emt 0:03:39]} 38. Qf1 {[%emt 0:15:33]} Ke8 {[%emt 0:02:33]} 39. Qh1 {[%emt 0:00:52]} Kd8 {[%emt 0:00:04]} 40. Qh8+ {[%emt 0:00:35]} Kc7 {[%emt 0:00:12]} 41. Qc3+ {[%emt 0:00:24]} Kb8 {[%emt 0:00:56]} 42. Qh8+ {[%emt 0:02:41]} Qc8 {[%emt 0:00:12]} 43. Qe5+ {[%emt 0:00:09]} Ka8 {[%emt 0:00:01]} 44. Qxd5 {[%emt 0:00:11]} a6 {[%emt 0:00:32]} 45. Kxg5 {[%emt 0:00:59]} 1/2-1/2

[Event "48th Indian U15-ch Open 2023"]
[Site "Jalgaon"]
[Date "2023.12.31"]
[Round "7.3"]
[White "Daksh Goyal"]
[Black "Vignesh Advaith Vemula"]
[Result "1/2-1/2"]
[ECO "B99"]
[WhiteElo "1814"]
[BlackElo "2028"]
[Annotator "RC"]
[PlyCount "136"]
[EventDate "2023.12.30"]
[EventType "swiss"]
[EventCountry "IND"]
[SourceTitle "playchess.com"]
[Source "ChessBase"]
[SourceQuality "1"]
[TimeControl "5400+30"]

1. e4 {[%emt 0:05:06]} c5 {[%emt 0:00:09]} 2. Nf3 {[%emt 0:00:11]} d6 {[%emt 0:00:05]} 3. d4 {[%emt 0:00:11]} cxd4 {[%emt 0:00:04]} 4. Nxd4 {[%emt 0:00:03]} Nf6 {[%emt 0:00:08]} 5. Nc3 {[%emt 0:00:12]} a6 {[%emt 0:00:04]} 6. Bg5 {[%emt 0:00:11]} e6 {[%emt 0:00:16]} 7. f4 {[%emt 0:00:10]} Be7 {[%emt 0:00:05]} 8. Qf3 {[%emt 0:00:07]} Qc7 {[%emt 0:00:05]} 9. O-O-O {[%emt 0:00:14]} Nbd7 {[%emt 0:00:03]} 10. g4 {[%emt 0:00:08]} h6 {[%emt 0:00:12]} 11. Bxf6 {[%emt 0:00:06]} Bxf6 {[%emt 0:00:05]} 12. h4 {[%emt 0:00:06]} Nb6 {[%emt 0:00:03]} 13. g5 {[%emt 0:00:08]} Bxd4 {[%emt 0:00:04]} 14. Rxd4 {[%emt 0:00:03]} Qc5 {[%emt 0:00:18]} 15. Rd2 {[%emt 0:00:53]} Bd7 {[%emt 0:00:13]} 16. Be2 {[%emt 0:00:40]} Na4 {[%emt 0:00:31]} 17. Rd3 {[%emt 0:00:25]} Rc8 {[%emt 0:00:05]} 18. Bd1 {[%emt 0:00:08]} Nb6 {[%emt 0:00:06]} 19. Qe3 {[%emt 0:09:01]} Qxe3+ {[%emt 0:01:20]} 20. Rxe3 {[%emt 0:00:02]} hxg5 {[%emt 0:00:08]} 21. fxg5 {[%emt 0:00:12]} Nc4 {[%emt 0:00:09]} 22. Reh3 {[%emt 0:16:03]} g6 {[%emt 0:00:51]} 23. Be2 {[%emt 0:04:04]} Ne5 {[%emt 0:00:35]} 24. Nd1 {[%emt 0:02:32]} Bc6 {[%emt 0:06:13]} 25. Nf2 {[%emt 0:00:31]} Ke7 {[%emt 0:00:06]} 26. Kd2 {[%emt 0:02:28]} Rhd8 {[%emt 0:02:06]} 27. Rd1 {[%emt 0:06:40]} b5 {[%emt 0:02:44]} 28. Kc1 {[%emt 0:09:35]} b4 {[%emt 0:03:04]} 29. Rd4 {[%emt 0:05:14]} a5 {[%emt 0:00:41]} 30. Ng4 {[%emt 0:03:51]} Nd7 {[%emt 0:05:40]} 31. Re3 {[%emt 0:03:20]} Rh8 {[%emt 0:02:57]} 32. e5 {[%emt 0:03:33]} Bd5 {[%emt 0:02:43]} 33. exd6+ {[%emt 0:01:22]} Kxd6 {[%emt 0:00:06]} 34. Nh6 {[%emt 0:01:24]} Kc5 {[%emt 0:01:01]} 35. Rf4 {[%emt 0:02:49]} f5 {[%emt 0:11:27]} 36. Bd1 {[%emt 0:09:30]} Rcf8 {[%emt 0:15:32]} 37. Re1 {[%emt 0:05:40]} Kd6 {[%emt 0:08:41]} 38. h5 {[%emt 0:02:58]} Rxh6 {[%emt 0:02:01]} 39. gxh6 {[%emt 0:00:08]} g5 {[%emt 0:00:29]} 40. Rd4 {[%emt 0:01:19]} Kc5 {[%emt 0:06:58]} 41. Rd2 {[%emt 0:00:28]} Nf6 {[%emt 0:01:51]} 42. c3 {[%emt 0:01:33]} bxc3 {[%emt 0:01:11]} 43. bxc3 {[%emt 0:00:06]} Ne4 {[%emt 0:00:17]} 44. Rde2 {[%emt 0:02:32]} Rh8 {[%emt 0:00:42]} 45. Bc2 {[%emt 0:01:16]} Rxh6 {[%emt 0:00:28]} 46. Bxe4 {[%emt 0:01:14]} Bxe4 {[%emt 0:00:07]} 47. Rxe4 {[%emt 0:00:14]} fxe4 {[%emt 0:00:05]} 48. Rxe4 {[%emt 0:00:44]} Kd5 {[%emt 0:01:20]} 49. Ra4 {[%emt 0:00:50]} Rxh5 {[%emt 0:00:06]} 50. Kd2 {[%emt 0:01:30]} e5 {[%emt 0:00:57]} 51. c4+ {[%emt 0:01:54]} Kd4 {[%emt 0:00:20]} 52. Rxa5 {[%emt 0:00:36]} g4 {[%emt 0:08:35]} 53. c5 {[%emt 0:01:20]} Rh2+ {[%emt 0:00:42]} 54. Ke1 {[%emt 0:00:09]} Ke3 {[%emt 0:01:09]} 55. Ra3+ {[%emt 0:00:21]} Kf4 {[%emt 0:00:04]} 56. Rc3 {[%emt 0:01:20]} Rh3 {[%emt 0:14:57]} 57. Rc4+ {[%emt 0:00:56]} Ke3 {[%emt 0:00:24]} 58. Kf1 {[%emt 0:00:22]} Kd3 {[%emt 0:01:55]} 59. Rxg4 {[%emt 0:00:33]} Rh1+ {[%emt 0:00:03]} 60. Kf2 {[%emt 0:00:31]} Rc1 {[%emt 0:00:13]} 61. Rg3+ {[%emt 0:00:17]} Kd4 {[%emt 0:00:28]} 62. a4 {[%emt 0:00:50]} e4 {[%emt 0:00:51]} 63. Ke2 {[%emt 0:00:24]} Rxc5 {[%emt 0:00:16]} 64. Ra3 {[%emt 0:00:33]} Ra5 {[%emt 0:01:14]} 65. Ra1 {[%emt 0:00:10]} Kc3 {[%emt 0:00:04]} 66. Ke3 {[%emt 0:00:03]} Kb3 {[%emt 0:00:05]} 67. Kxe4 {[%emt 0:00:03]} Rxa4+ {[%emt 0:00:04]} 68. Rxa4 {[%emt 0:00:03]} Kxa4 {[%emt 0:00:06]} 1/2-1/2

[Event "48th Indian U15-ch Open 2023"]
[Site "Jalgaon"]
[Date "2023.12.31"]
[Round "7.4"]
[White "Nirnay Garg"]
[Black "Pavan Karthikeya Varma Gunturi"]
[Result "1-0"]
[ECO "C95"]
[WhiteElo "1894"]
[BlackElo "1538"]
[Annotator "NA RC"]
[PlyCount "83"]
[EventDate "2023.12.30"]
[EventType "swiss"]
[EventCountry "IND"]
[SourceTitle "playchess.com"]
[Source "ChessBase"]
[SourceQuality "1"]
[TimeControl "5400+30"]

1. e4 {[%emt 0:05:23]} e5 {[%emt 0:00:10]} 2. Nf3 {[%emt 0:00:03]} Nc6 {[%emt 0:00:39]} 3. Bb5 {[%emt 0:00:16]} a6 {[%emt 0:00:06]} 4. Ba4 {[%emt 0:00:05]} Nf6 {[%emt 0:00:13]} 5. O-O {[%emt 0:00:07]} Be7 {[%emt 0:00:52]} 6. Re1 {[%emt 0:00:13]} b5 {[%emt 0:01:26]} 7. Bb3 {[%emt 0:00:02]} d6 {[%emt 0:00:07]} 8. c3 {[%emt 0:00:04]} O-O {[%emt 0:00:07]} 9. h3 {[%emt 0:00:03]} Nb8 {[%emt 0:01:03]} 10. d4 {[%emt 0:01:41]} Nbd7 {[%emt 0:02:24]} 11. Nbd2 {[%emt 0:00:13]} Bb7 {[%emt 0:03:03]} 12. Bc2 {[%emt 0:00:26]} Re8 {[%emt 0:04:45]} 13. Nf1 {[%emt 0:00:57]} Bf8 {[%emt 0:02:08]} 14. Ng3 {[%emt 0:00:24]} g6 {[%emt 0:01:42]} 15. a4 {[%emt 0:00:46]} Bg7 {[%emt 0:08:40]} 16. Bd3 {[%emt 0:00:41]} c6 {[%emt 0:02:17]} 17. Be3 {[%emt 0:04:16]} h6 {[%emt 0:05:35]} 18. Qd2 {[%emt 0:03:02]} Kh7 {[%emt 0:02:26]} 19. b4 {[%emt 0:03:28]} Qc7 {[%emt 0:09:45]} 20. a5 {[%emt 0:04:24]} d5 {[%emt 0:11:04]} 21. dxe5 {[%emt 0:11:19]} Nxe5 {[%emt 0:05:18]} 22. Nxe5 {[%emt 0:03:08]} Qxe5 {[%emt 0:00:20]} 23. f4 {[%emt 0:01:54]} Qc7 {[%emt 0:11:56]} 24. e5 {[%emt 0:03:07]} Nd7 {[%emt 0:02:23]} 25. Qf2 {[%emt 0:03:42]} c5 {[%emt 0:04:33]} 26. Ne2 {[%emt 0:04:35]} Rac8 {[%emt 0:06:26]} 27. h4 {[%emt 0:02:01]} h5 {[%emt 0:03:01]} 28. g4 {[%emt 0:07:15]} hxg4 {[%emt 0:02:41]} 29. h5 {[%emt 0:01:09]} Qc6 {[%emt 0:01:07]} 30. hxg6+ {[%emt 0:06:30]} fxg6 {[%emt 0:00:42]} 31. bxc5 {[%emt 0:01:49]} Nf8 {[%emt 0:07:26]} 32. Qh4+ {[%emt 0:09:59]} Kg8 {[%emt 0:00:07]} 33. Qxg4 {[%emt 0:02:12]} Qe6 {[%emt 0:01:53]} 34. Qg3 {[%emt 0:01:30]} Qf7 {[%emt 0:00:10]} 35. Nd4 {[%emt 0:00:34]} Rc7 {[%emt 0:00:38]} 36. Nf3 {[%emt 0:01:07]} Bc8 {[%emt 0:00:28]} 37. Nh4 {[%emt 0:08:08]} Rc6 {[%emt 0:00:24]} 38. Re2 {[%emt 0:05:01]} Bd7 {[%emt 0:01:12]} 39. Rg2 {[%emt 0:00:39]} Ree6 {[%emt 0:00:00]} 40. Bd4 {[%emt 0:00:51]} Qe7 {[%emt 0:00:29]} 41. Nf3 {[%emt 0:00:37]} Qe8 {[%emt 0:00:18]} 42. f5 {[%emt 0:00:21]} 1-0